[Event "World Senior chT-65 2019"]
[Site "Rhodes"]
[Date "2019.04.16"]
[Round "1.39"]
[White "Halldorsson, Bragi"]
[Black "Murray, Jim G."]
[Result "1-0"]
[ECO "D94"]
[WhiteElo "2112"]
[BlackElo "1845"]
[Annotator "NA"]
[PlyCount "123"]
[EventDate "2019.04.16"]
[EventType "team-tourn"]
[EventCountry "GRE"]
[SourceTitle "playchess.com"]
[Source "ChessBase"]
[SourceQuality "1"]
[WhiteTeam "Iceland"]
[BlackTeam "Ireland"]
[WhiteTeamCountry "ISL"]
[BlackTeamCountry "IRL"]
[TimeControl "40/5400+30:1800+30"]

1. d4 {[%emt 0:00:00]} Nf6 {[%emt 0:00:00]} 2. c4 {[%emt 0:00:04]} g6 {[%emt 0:00:00]} 3. Nc3 {[%emt 0:00:07]} d5 {[%emt 0:00:02]} 4. e3 {[%emt 0:00:07]} Bg7 {[%emt 0:00:11]} 5. Nf3 {[%emt 0:00:08]} O-O {[%emt 0:01:15]} 6. b4 {[%emt 0:00:13]} a5 {[%emt 0:02:44]} 7. b5 {[%emt 0:00:18]} dxc4 {[%emt 0:05:35]} 8. Bxc4 {[%emt 0:00:24]} c5 {[%emt 0:02:23]} 9. bxc6 {[%emt 0:04:42]} Nxc6 {[%emt 0:04:25]} 10. a4 {[%emt 0:02:59]} Bg4 {[%emt 0:05:45]} 11. Ba3 {[%emt 0:01:06]} Rc8 {[%emt 0:04:02]} 12. Nb5 {[%emt 0:15:29]} Nd5 {[%emt 0:20:21]} 13. Qb3 {[%emt 0:03:28]} Bxf3 {[%emt 0:01:49]} 14. gxf3 {[%emt 0:00:14]} Ndb4 {[%emt 0:01:07]} 15. f4 {[%emt 0:00:58]} Qd7 {[%emt 0:08:50]} 16. Rc1 {[%emt 0:15:33]} Na6 {[%emt 0:10:25]} 17. Bd5 {[%emt 0:06:08]} Nab4 {[%emt 0:06:53]} 18. Bg2 {[%emt 0:00:45]} Qf5 {[%emt 0:03:23]} 19. O-O {[%emt 0:00:49]} Rfd8 {[%emt 0:12:13]} 20. Rc5 {[%emt 0:02:43]} Qd7 {[%emt 0:02:38]} 21. d5 {[%emt 0:06:08]} Nb8 {[%emt 0:00:48]} 22. Bxb4 {[%emt 0:00:44]} axb4 {[%emt 0:00:26]} 23. Rxc8 {[%emt 0:00:24]} Rxc8 {[%emt 0:00:23]} 24. Qxb4 {[%emt 0:00:39]} Na6 {[%emt 0:00:37]} 25. Qa3 {[%emt 0:03:05]} Bf8 {[%emt 0:02:11]} 26. Qa2 {[%emt 0:03:25]} Nc7 {[%emt 0:00:41]} 27. Nc3 {[%emt 0:07:44]} Na6 {[%emt 0:00:43]} 28. Ne4 {[%emt 0:02:09]} Nc5 {[%emt 0:01:10]} 29. Nxc5 {[%emt 0:06:55]} Rxc5 {[%emt 0:00:02]} 30. Rb1 {[%emt 0:01:24]} Ra5 {[%emt 0:00:57]} 31. Qb3 {[%emt 0:00:42]} Rxa4 {[%emt 0:01:08]} 32. Bh3 {[%emt 0:04:08]} Qe8 {[%emt 0:00:38]} 33. Qxb7 {[%emt 0:00:20]} Qa8 {[%emt 0:00:25]} 34. Bd7 {[%emt 0:03:29]} Qxb7 {[%emt 0:00:43]} 35. Rxb7 {[%emt 0:00:07]} Ra1+ {[%emt 0:00:35]} 36. Kg2 {[%emt 0:00:09]} Rd1 {[%emt 0:00:16]} 37. Bc6 {[%emt 0:00:53]} Rc1 {[%emt 0:00:32]} 38. e4 {[%emt 0:01:42]} Rc4 {[%emt 0:01:41]} 39. f3 {[%emt 0:02:22]} Rc2+ {[%emt 0:00:31]} 40. Kg3 {[%emt 0:00:00]} h5 {[%emt 0:00:00]} 41. h3 {[%emt 0:01:31]} Rc3 {[%emt 0:04:56]} 42. h4 {[%emt 0:00:12]} Rc2 {[%emt 0:07:22]} 43. Bd7 {[%emt 0:03:04]} Rd2 {[%emt 0:07:25]} 44. Bc6 {[%emt 0:02:33]} Rd4 {[%emt 0:01:51]} 45. Ra7 {[%emt 0:02:27]} Rd2 {[%emt 0:02:16]} 46. Bd7 {[%emt 0:01:27]} Bg7 {[%emt 0:03:00]} 47. Ra8+ {[%emt 0:01:07]} Bf8 {[%emt 0:04:19]} 48. f5 {[%emt 0:00:28]} gxf5 {[%emt 0:00:48]} 49. Bxf5 {[%emt 0:00:15]} Kg7 {[%emt 0:01:18]} 50. Kf4 {[%emt 0:01:40]} Rg2 {[%emt 0:00:51]} 51. e5 {[%emt 0:01:22]} Rg1 {[%emt 0:00:34]} 52. Rd8 {[%emt 0:04:57]} Rd1 {[%emt 0:00:41]} 53. Kg5 {[%emt 0:01:08]} e6 {[%emt 0:00:32]} 54. Rxf8 {[%emt 0:00:39]} Kxf8 {[%emt 0:01:53]} 55. dxe6 {[%emt 0:00:16]} fxe6 {[%emt 0:00:23]} 56. Bxe6 {[%emt 0:00:16]} Ke7 {[%emt 0:00:08]} 57. Bf5 {[%emt 0:00:32]} Rf1 {[%emt 0:00:31]} 58. f4 {[%emt 0:00:18]} Rf2 {[%emt 0:00:23]} 59. Bg6 {[%emt 0:00:22]} Ke6 {[%emt 0:00:52]} 60. Bxh5 {[%emt 0:00:22]} Kd5 {[%emt 0:00:45]} 61. Bf7+ {[%emt 0:01:02]} Ke4 {[%emt 0:00:18]} 62. e6 {[%emt 0:00:19]} 1-0

[Event "World Senior chT-65 2019"]
[Site "Rhodes"]
[Date "2019.04.16"]
[Round "1.40"]
[White "Gibson, John F."]
[Black "Kristinsson, Jon"]
[Result "1/2-1/2"]
[ECO "A25"]
[WhiteElo "1818"]
[BlackElo "2094"]
[Annotator "NA"]
[PlyCount "51"]
[EventDate "2019.04.16"]
[EventType "team-tourn"]
[EventCountry "GRE"]
[SourceTitle "playchess.com"]
[Source "ChessBase"]
[SourceQuality "1"]
[WhiteTeam "Ireland"]
[BlackTeam "Iceland"]
[WhiteTeamCountry "IRL"]
[BlackTeamCountry "ISL"]
[TimeControl "40/5400+30:1800+30"]

1. c4 {[%emt 0:00:00]} e5 {[%emt 0:00:00]} 2. Nc3 {[%emt 0:00:00]} Nf6 {[%emt 0:00:10]} 3. g3 {[%emt 0:00:00]} Bb4 {[%emt 0:00:50]} 4. Bg2 {[%emt 0:00:20]} O-O {[%emt 0:00:15]} 5. e4 {[%emt 0:00:17]} d6 {[%emt 0:02:16]} 6. Nge2 {[%emt 0:00:20]} Bg4 {[%emt 0:01:16]} 7. O-O {[%emt 0:04:34]} Nc6 {[%emt 0:00:49]} 8. a3 {[%emt 0:03:22]} Bxc3 {[%emt 0:01:30]} 9. bxc3 {[%emt 0:00:43]} Qd7 {[%emt 0:01:21]} 10. Rb1 {[%emt 0:04:16]} b6 {[%emt 0:00:38]} 11. d3 {[%emt 0:02:54]} Bh3 {[%emt 0:01:09]} 12. f4 {[%emt 0:03:52]} Ne7 {[%emt 0:08:27]} 13. f5 {[%emt 0:05:09]} Bxg2 {[%emt 0:00:59]} 14. Kxg2 {[%emt 0:00:05]} c6 {[%emt 0:11:01]} 15. Bg5 {[%emt 0:04:06]} d5 {[%emt 0:00:54]} 16. Bxf6 {[%emt 0:05:33]} gxf6 {[%emt 0:00:02]} 17. d4 {[%emt 0:08:02]} Rad8 {[%emt 0:03:57]} 18. dxe5 {[%emt 0:06:45]} fxe5 {[%emt 0:00:09]} 19. f6 {[%emt 0:02:32]} Ng6 {[%emt 0:01:44]} 20. Qd2 {[%emt 0:00:55]} Kh8 {[%emt 0:04:06]} 21. Qh6 {[%emt 0:00:07]} Rg8 {[%emt 0:00:41]} 22. Rf5 {[%emt 0:00:42]} Nf8 {[%emt 0:01:57]} 23. Rxe5 {[%emt 0:08:30]} dxe4 {[%emt 0:05:23]} 24. Qe3 {[%emt 0:10:10]} Rg6 {[%emt 0:08:23]} 25. Rf1 {[%emt 0:01:51]} Ne6 {[%emt 0:18:09]} 26. Rxe4 {[%emt 0:02:09]} 1/2-1/2

[Event "World Senior chT-65 2019"]
[Site "Rhodes"]
[Date "2019.04.16"]
[Round "1.42"]
[White "Beltz, Robert"]
[Black "Myagmarsuren, Begz"]
[Result "0-1"]
[ECO "A30"]
[WhiteElo "2158"]
[BlackElo "1911"]
[Annotator "NA"]
[PlyCount "38"]
[EventDate "2019.04.16"]
[EventType "team-tourn"]
[EventCountry "GRE"]
[SourceTitle "playchess.com"]
[Source "ChessBase"]
[SourceQuality "1"]
[WhiteTeam "Germany"]
[BlackTeam "Mongolia"]
[WhiteTeamCountry "GER"]
[BlackTeamCountry "MGL"]
[TimeControl "40/5400+30:1800+30"]

1. Nf3 {[%emt 0:00:00]} c5 {[%emt 0:00:00]} 2. c4 {[%emt 0:00:29]} Nc6 {[%emt 0:00:00]} 3. d4 {[%emt 0:02:00]} cxd4 {[%emt 0:01:22]} 4. Nxd4 {[%emt 0:00:10]} Ne5 {[%emt 0:02:01]} 5. e4 {[%emt 0:00:52]} e6 {[%emt 0:01:55]} 6. Nc3 {[%emt 0:01:03]} Nf6 {[%emt 0:00:55]} 7. Be2 {[%emt 0:01:31]} Bb4 {[%emt 0:01:13]} 8. f4 {[%emt 0:01:43]} Nxe4 {[%emt 0:07:02]} 9. Qc2 {[%emt 0:01:23]} Qh4+ {[%emt 0:00:35]} 10. g3 {[%emt 0:05:52]} Nxg3 {[%emt 0:01:11]} 11. Be3 {[%emt 0:02:50]} Nxh1+ {[%emt 0:04:59]} 12. Kd2 {[%emt 0:00:43]} Ng4 {[%emt 0:03:59]} 13. Rxh1 {[%emt 0:07:55]} Nxe3 {[%emt 0:01:01]} 14. Kxe3 {[%emt 0:00:07]} O-O {[%emt 0:05:26]} 15. Ne4 {[%emt 0:02:30]} d5 {[%emt 0:02:29]} 16. Nf3 {[%emt 0:01:29]} Qe7 {[%emt 0:01:57]} 17. Neg5 {[%emt 0:01:29]} g6 {[%emt 0:02:10]} 18. Kf2 {[%emt 0:02:42]} h6 {[%emt 0:03:01]} 19. Nh3 {[%emt 0:00:32]} e5 {[%emt 0:02:31]} 0-1

[Event "World Senior chT-65 2019"]
[Site "Rhodes"]
[Date "2019.04.16"]
[Round "1.43"]
[White "Serjmyadag, Damdin"]
[Black "Just, Joachim"]
[Result "0-1"]
[ECO "B30"]
[WhiteElo "1895"]
[BlackElo "1970"]
[Annotator "NA"]
[PlyCount "140"]
[EventDate "2019.04.16"]
[EventType "team-tourn"]
[EventCountry "GRE"]
[SourceTitle "playchess.com"]
[Source "ChessBase"]
[SourceQuality "1"]
[WhiteTeam "Mongolia"]
[BlackTeam "Germany"]
[WhiteTeamCountry "MGL"]
[BlackTeamCountry "GER"]
[TimeControl "40/5400+30:1800+30"]

1. e4 {[%emt 0:00:00]} c5 {[%emt 0:00:00]} 2. Nf3 {[%emt 0:00:18]} Nc6 {[%emt 0:00:02]} 3. Bc4 {[%emt 0:01:33]} g6 {[%emt 0:00:48]} 4. c3 {[%emt 0:01:18]} Nf6 {[%emt 0:17:06]} 5. e5 {[%emt 0:11:32]} Ng4 {[%emt 0:01:26]} 6. d4 {[%emt 0:02:53]} d5 {[%emt 0:08:30]} 7. Be2 {[%emt 0:03:03]} cxd4 {[%emt 0:07:08]} 8. cxd4 {[%emt 0:00:19]} Bg7 {[%emt 0:00:13]} 9. Nc3 {[%emt 0:03:11]} O-O {[%emt 0:00:49]} 10. O-O {[%emt 0:07:52]} e6 {[%emt 0:08:03]} 11. Ng5 {[%emt 0:12:07]} Nh6 {[%emt 0:01:06]} 12. f4 {[%emt 0:09:36]} f6 {[%emt 0:09:11]} 13. Nf3 {[%emt 0:02:51]} fxe5 {[%emt 0:03:04]} 14. fxe5 {[%emt 0:01:31]} Nf5 {[%emt 0:05:26]} 15. g4 {[%emt 0:06:46]} Nh4 {[%emt 0:01:57]} 16. Be3 {[%emt 0:00:45]} Bd7 {[%emt 0:06:29]} 17. Kh1 {[%emt 0:01:10]} Nxf3 {[%emt 0:00:21]} 18. Bxf3 {[%emt 0:00:36]} Qb6 {[%emt 0:02:30]} 19. Qd2 {[%emt 0:04:26]} Rad8 {[%emt 0:04:18]} 20. Rad1 {[%emt 0:03:56]} Na5 {[%emt 0:02:09]} 21. b3 {[%emt 0:02:29]} Qb4 {[%emt 0:01:27]} 22. Nxd5 {[%emt 0:04:38]} Qxd2 {[%emt 0:02:26]} 23. Bxd2 {[%emt 0:00:18]} Nc6 {[%emt 0:02:32]} 24. Nf6+ {[%emt 0:06:37]} Bxf6 {[%emt 0:01:11]} 25. exf6 {[%emt 0:00:11]} Nxd4 {[%emt 0:00:58]} 26. Bxb7 {[%emt 0:00:15]} Bb5 {[%emt 0:01:48]} 27. Rf2 {[%emt 0:04:23]} Be2 {[%emt 0:01:25]} 28. Re1 {[%emt 0:00:57]} Bxg4 {[%emt 0:00:38]} 29. Bb4 {[%emt 0:01:09]} Rf7 {[%emt 0:00:29]} 30. Bg2 {[%emt 0:01:07]} Bf5 {[%emt 0:01:53]} 31. Bc3 {[%emt 0:00:44]} Nc2 {[%emt 0:01:32]} 32. Ree2 {[%emt 0:02:14]} Rd1+ {[%emt 0:01:52]} 33. Rf1 {[%emt 0:00:42]} Rfd7 {[%emt 0:02:23]} 34. Ref2 {[%emt 0:00:37]} Ne3 {[%emt 0:00:56]} 35. Kg1 {[%emt 0:02:21]} Nxf1 {[%emt 0:00:30]} 36. Rxf1 {[%emt 0:00:04]} Rxf1+ {[%emt 0:00:48]} 37. Kxf1 {[%emt 0:00:11]} Kf7 {[%emt 0:00:25]} 38. h4 {[%emt 0:00:21]} Rd3 {[%emt 0:00:23]} 39. Be5 {[%emt 0:00:38]} Rd1+ {[%emt 0:00:48]} 40. Ke2 {[%emt 0:00:45]} Bg4+ {[%emt 0:00:00]} 41. Ke3 {[%emt 0:01:08]} Re1+ {[%emt 0:02:21]} 42. Kf4 {[%emt 0:03:16]} Bf5 {[%emt 0:00:44]} 43. Bf3 {[%emt 0:01:30]} h6 {[%emt 0:04:11]} 44. Bd4 {[%emt 0:00:33]} a6 {[%emt 0:01:21]} 45. Kg3 {[%emt 0:06:56]} g5 {[%emt 0:08:02]} 46. hxg5 {[%emt 0:01:26]} hxg5 {[%emt 0:00:02]} 47. Kf2 {[%emt 0:04:46]} Rc1 {[%emt 0:00:36]} 48. Bh5+ {[%emt 0:03:06]} Bg6 {[%emt 0:00:31]} 49. Be2 {[%emt 0:02:26]} Rc2 {[%emt 0:00:26]} 50. Ke3 {[%emt 0:00:38]} Rxa2 {[%emt 0:00:39]} 51. Bc4 {[%emt 0:00:59]} a5 {[%emt 0:03:09]} 52. Be5 {[%emt 0:00:45]} a4 {[%emt 0:03:10]} 53. b4 {[%emt 0:01:02]} Rc2 {[%emt 0:06:25]} 54. Kd4 {[%emt 0:01:39]} a3 {[%emt 0:06:12]} 55. Bb3 {[%emt 0:05:57]} a2 {[%emt 0:02:43]} 56. Ke3 {[%emt 0:00:17]} Rc1 {[%emt 0:01:00]} 57. Bxa2 {[%emt 0:00:36]} Re1+ {[%emt 0:00:02]} 58. Kd4 {[%emt 0:03:07]} Re4+ {[%emt 0:00:08]} 59. Kc5 {[%emt 0:00:26]} Rxe5+ {[%emt 0:00:12]} 60. Kd6 {[%emt 0:00:18]} Re2 {[%emt 0:00:36]} 61. Bc4 {[%emt 0:00:14]} Rd2+ {[%emt 0:00:30]} 62. Ke5 {[%emt 0:00:17]} Bf5 {[%emt 0:00:41]} 63. b5 {[%emt 0:00:17]} Rb2 {[%emt 0:00:25]} 64. Bf1 {[%emt 0:00:19]} Rb4 {[%emt 0:00:19]} 65. Kd6 {[%emt 0:00:29]} g4 {[%emt 0:01:12]} 66. Kc5 {[%emt 0:00:09]} Rb1 {[%emt 0:00:23]} 67. Bg2 {[%emt 0:00:15]} e5 {[%emt 0:01:18]} 68. b6 {[%emt 0:00:22]} e4 {[%emt 0:00:37]} 69. Kc6 {[%emt 0:00:05]} e3 {[%emt 0:00:34]} 70. Kc7 {[%emt 0:00:25]} e2 {[%emt 0:00:07]} 0-1

[Event "World Senior chT-65 2019"]
[Site "Rhodes"]
[Date "2019.04.16"]
[Round "1.44"]
[White "Baumbach, Friedrich"]
[Black "Bujinlkham, Purevdorj"]
[Result "1/2-1/2"]
[ECO "D03"]
[WhiteElo "2089"]
[BlackElo "1786"]
[Annotator "NA"]
[PlyCount "165"]
[EventDate "2019.04.16"]
[EventType "team-tourn"]
[EventCountry "GRE"]
[SourceTitle "playchess.com"]
[Source "ChessBase"]
[SourceQuality "1"]
[WhiteTeam "Germany"]
[BlackTeam "Mongolia"]
[WhiteTeamCountry "GER"]
[BlackTeamCountry "MGL"]
[TimeControl "40/5400+30:1800+30"]

1. d4 {[%emt 0:00:00]} d5 {[%emt 0:00:00]} 2. Nf3 {[%emt 0:00:15]} Nf6 {[%emt 0:00:02]} 3. Bg5 {[%emt 0:00:34]} e6 {[%emt 0:00:16]} 4. Nbd2 {[%emt 0:00:23]} Be7 {[%emt 0:00:17]} 5. e3 {[%emt 0:00:20]} O-O {[%emt 0:00:47]} 6. Bd3 {[%emt 0:00:28]} b6 {[%emt 0:00:57]} 7. Ne5 {[%emt 0:00:50]} Bb7 {[%emt 0:00:49]} 8. Bxf6 {[%emt 0:00:54]} Bxf6 {[%emt 0:00:32]} 9. f4 {[%emt 0:00:09]} c5 {[%emt 0:01:19]} 10. c3 {[%emt 0:00:12]} Nd7 {[%emt 0:06:59]} 11. O-O {[%emt 0:01:16]} g6 {[%emt 0:01:47]} 12. Qg4 {[%emt 0:02:15]} Bg7 {[%emt 0:02:19]} 13. h4 {[%emt 0:03:14]} f5 {[%emt 0:04:29]} 14. Qh3 {[%emt 0:01:38]} Nxe5 {[%emt 0:03:17]} 15. fxe5 {[%emt 0:00:42]} Qe7 {[%emt 0:03:57]} 16. g4 {[%emt 0:02:03]} Rf7 {[%emt 0:04:42]} 17. gxf5 {[%emt 0:04:07]} gxf5 {[%emt 0:02:44]} 18. Kh2 {[%emt 0:01:31]} Kh8 {[%emt 0:01:48]} 19. Rg1 {[%emt 0:04:18]} Bh6 {[%emt 0:00:43]} 20. Be2 {[%emt 0:02:26]} Rg8 {[%emt 0:05:38]} 21. Rxg8+ {[%emt 0:03:22]} Kxg8 {[%emt 0:00:02]} 22. Rg1+ {[%emt 0:00:38]} Rg7 {[%emt 0:00:32]} 23. Rxg7+ {[%emt 0:05:45]} Qxg7 {[%emt 0:02:26]} 24. Nf1 {[%emt 0:03:08]} Bc8 {[%emt 0:00:00]} 25. Qf3 {[%emt 0:01:38]} Bd7 {[%emt 0:01:42]} 26. Qh5 {[%emt 0:04:13]} Qg6 {[%emt 0:01:46]} 27. Qf3 {[%emt 0:02:28]} Qf7 {[%emt 0:02:19]} 28. Kh3 {[%emt 0:04:32]} Be8 {[%emt 0:05:21]} 29. Qg2+ {[%emt 0:01:48]} Kh8 {[%emt 0:01:40]} 30. Qf3 {[%emt 0:01:48]} Qf8 {[%emt 0:00:24]} 31. Bd3 {[%emt 0:03:38]} c4 {[%emt 0:02:04]} 32. Be2 {[%emt 0:00:43]} b5 {[%emt 0:00:11]} 33. Bd1 {[%emt 0:02:57]} b4 {[%emt 0:01:03]} 34. cxb4 {[%emt 0:04:18]} Qxb4 {[%emt 0:00:28]} 35. Qe2 {[%emt 0:00:37]} c3 {[%emt 0:07:49]} 36. bxc3 {[%emt 0:00:58]} Qxc3 {[%emt 0:00:38]} 37. Bb3 {[%emt 0:01:56]} Qb4 {[%emt 0:04:34]} 38. Qf3 {[%emt 0:01:31]} Qb6 {[%emt 0:08:05]} 39. Ng3 {[%emt 0:01:05]} Qd8 {[%emt 0:08:18]} 40. Ne2 {[%emt 0:02:22]} Bf7 {[%emt 0:00:41]} 41. Nf4 {[%emt 0:30:29]} Qe8 {[%emt 0:00:52]} 42. Bd1 {[%emt 0:00:00]} Qg8 {[%emt 0:00:37]} 43. Qg3 {[%emt 0:00:00]} Qe8 {[%emt 0:00:25]} 44. Qf3 {[%emt 0:00:00]} Qb5 {[%emt 0:02:20]} 45. Qe2 {[%emt 0:00:00]} Qb1 {[%emt 0:03:50]} 46. Qc2 {[%emt 0:00:00]} Qb7 {[%emt 0:01:58]} 47. Qc5 {[%emt 0:00:00]} Kg8 {[%emt 0:01:33]} 48. Qd6 {[%emt 0:00:00]} Qc8 {[%emt 0:04:50]} 49. Qe7 {[%emt 0:00:00]} Bxf4 {[%emt 0:04:16]} 50. exf4 {[%emt 0:00:00]} Qc3+ {[%emt 0:00:24]} 51. Kg2 {[%emt 0:00:00]} Qd2+ {[%emt 0:00:42]} 52. Kg3 {[%emt 0:00:00]} Qe1+ {[%emt 0:01:42]} 53. Kg2 {[%emt 0:00:00]} Qd2+ {[%emt 0:05:34]} 54. Kg3 {[%emt 0:00:00]} Qe1+ {[%emt 0:00:18]} 55. Kg2 {[%emt 0:00:00]} Qa5 {[%emt 0:04:25]} 56. Be2 {[%emt 0:00:00]} Qb6 {[%emt 0:02:23]} 57. Qg5+ {[%emt 0:00:00]} Kf8 {[%emt 0:00:04]} 58. Qh6+ {[%emt 0:00:00]} Ke8 {[%emt 0:01:32]} 59. Bh5 {[%emt 0:00:51]} Qb2+ {[%emt 0:00:13]} 60. Kg3 {[%emt 0:00:16]} Qc3+ {[%emt 0:01:36]} 61. Kg2 {[%emt 0:02:33]} Qb2+ {[%emt 0:01:14]} 62. Kg3 {[%emt 0:00:26]} Qa3+ {[%emt 0:00:10]} 63. Bf3 {[%emt 0:00:47]} Qxa2 {[%emt 0:00:32]} 64. Qxh7 {[%emt 0:01:13]} Qa5 {[%emt 0:00:52]} 65. Qh8+ {[%emt 0:03:34]} Kd7 {[%emt 0:00:15]} 66. Qh7 {[%emt 0:01:16]} Qe1+ {[%emt 0:00:14]} 67. Kg2 {[%emt 0:00:27]} Ke8 {[%emt 0:01:04]} 68. Qh8+ {[%emt 0:00:21]} Kd7 {[%emt 0:00:07]} 69. Qh7 {[%emt 0:00:07]} Qd2+ {[%emt 0:00:09]} 70. Kg3 {[%emt 0:00:26]} Ke8 {[%emt 0:00:08]} 71. Qh8+ {[%emt 0:00:12]} Kd7 {[%emt 0:00:28]} 72. Qh7 {[%emt 0:00:13]} Qe1+ {[%emt 0:00:16]} 73. Kg2 {[%emt 0:00:11]} Qd2+ {[%emt 0:01:25]} 74. Kg3 {[%emt 0:00:09]} Ke7 {[%emt 0:00:56]} 75. Bh5 {[%emt 0:02:20]} Qe3+ {[%emt 0:00:42]} 76. Kg2 {[%emt 0:00:15]} Qe4+ {[%emt 0:00:20]} 77. Kg3 {[%emt 0:00:33]} Qe3+ {[%emt 0:00:24]} 78. Kg2 {[%emt 0:00:10]} Qe4+ {[%emt 0:00:33]} 79. Kg3 {[%emt 0:00:08]} Qe1+ {[%emt 0:00:53]} 80. Kg2 {[%emt 0:00:12]} Qd2+ {[%emt 0:00:52]} 81. Kg3 {[%emt 0:00:12]} Qe3+ {[%emt 0:00:18]} 82. Kg2 {[%emt 0:00:08]} Qe4+ {[%emt 0:00:38]} 83. Kg3 {[%emt 0:00:12]} 1/2-1/2

[Event "World Senior chT-65 2019"]
[Site "Rhodes"]
[Date "2019.04.16"]
[Round "1.45"]
[White "Page, Mark E"]
[Black "Maki, Christer"]
[Result "1-0"]
[ECO "B06"]
[WhiteElo "2107"]
[BlackElo "1885"]
[Annotator "NA"]
[PlyCount "99"]
[EventDate "2019.04.16"]
[EventType "team-tourn"]
[EventCountry "GRE"]
[SourceTitle "playchess.com"]
[Source "ChessBase"]
[SourceQuality "1"]
[WhiteTeam "England"]
[BlackTeam "Sweden"]
[WhiteTeamCountry "ENG"]
[BlackTeamCountry "SWE"]
[TimeControl "40/5400+30:1800+30"]

1. e4 {[%emt 0:01:32]} g6 {[%emt 0:00:40]} 2. d4 {[%emt 0:00:00]} Bg7 {[%emt 0:01:06]} 3. Nc3 {[%emt 0:00:00]} d6 4. Nf3 {[%emt 0:06:33]} Bg4 {[%emt 0:03:32]} 5. Be3 {[%emt 0:13:10]} c6 {[%emt 0:05:15]} 6. Qd2 {[%emt 0:01:13]} Bxf3 {[%emt 0:00:10]} 7. gxf3 {[%emt 0:02:45]} Nd7 {[%emt 0:04:39]} 8. h4 {[%emt 0:05:28]} h5 {[%emt 0:04:28]} 9. O-O-O {[%emt 0:03:54]} Qa5 {[%emt 0:04:09]} 10. Kb1 {[%emt 0:02:59]} O-O-O {[%emt 0:12:21]} 11. f4 {[%emt 0:10:03]} Kb8 {[%emt 0:11:05]} 12. f3 {[%emt 0:01:12]} Bh6 {[%emt 0:05:16]} 13. Rg1 {[%emt 0:04:40]} Ngf6 {[%emt 0:08:27]} 14. Bh3 {[%emt 0:00:45]} Nb6 {[%emt 0:00:53]} 15. Ne2 {[%emt 0:06:12]} Qxd2 16. Bxd2 {[%emt 0:04:10]} e6 {[%emt 0:01:49]} 17. b3 {[%emt 0:03:50]} Nbd7 18. Bc3 {[%emt 0:07:16]} d5 {[%emt 0:08:14]} 19. e5 {[%emt 0:04:05]} Ne8 {[%emt 0:00:27]} 20. Bb4 {[%emt 0:00:28]} Rc8 21. Be7 {[%emt 0:05:39]} Bf8 {[%emt 0:02:10]} 22. Bxf8 {[%emt 0:00:35]} Rxf8 {[%emt 0:01:48]} 23. Kb2 {[%emt 0:03:53]} Nc7 24. Rd2 {[%emt 0:08:00]} b5 {[%emt 0:02:30]} 25. a4 {[%emt 0:00:30]} bxa4 {[%emt 0:01:08]} 26. Ra1 {[%emt 0:00:57]} Nb6 {[%emt 0:01:09]} 27. Nc3 {[%emt 0:00:59]} axb3 {[%emt 0:03:03]} 28. cxb3 {[%emt 0:04:39]} Kb7 {[%emt 0:00:41]} 29. Bf1 {[%emt 0:00:00]} a6 30. Ra5 {[%emt 0:01:13]} Nb5 {[%emt 0:01:01]} 31. Rd1 {[%emt 0:01:44]} Ra8 {[%emt 0:02:06]} 32. Na2 {[%emt 0:00:00]} f6 33. Nb4 {[%emt 0:05:16]} fxe5 {[%emt 0:09:46]} 34. Rda1 {[%emt 0:04:25]} Rxf4 {[%emt 0:00:26]} 35. Nxa6 {[%emt 0:00:00]} Rxa6 36. Rxa6 {[%emt 0:01:53]} Rxf3 {[%emt 0:06:49]} 37. Bxb5 {[%emt 0:00:22]} cxb5 {[%emt 0:00:22]} 38. Ra7+ {[%emt 0:01:51]} Kb8 {[%emt 0:02:11]} 39. Rg7 {[%emt 0:00:00]} Rf2+ 40. Kc3 {[%emt 0:00:00]} exd4+ 41. Kxd4 {[%emt 0:01:36]} Nc8 {[%emt 0:06:37]} 42. Rc1 {[%emt 0:00:00]} Nd6 43. Ke5 {[%emt 0:08:42]} Nf5 {[%emt 0:05:50]} 44. Rh7 {[%emt 0:00:00]} Re2+ 45. Kf6 {[%emt 0:00:32]} Nd6 {[%emt 0:05:40]} 46. Ke7 {[%emt 0:01:27]} Nf5+ {[%emt 0:00:19]} 47. Kd8 {[%emt 0:00:00]} Nd6 48. Kd7 {[%emt 0:02:16]} Nb7 {[%emt 0:00:48]} 49. b4 {[%emt 0:00:00]} d4 50. Ra1 {[%emt 0:02:01]} 1-0

[Event "World Senior chT-65 2019"]
[Site "Rhodes"]
[Date "2019.04.16"]
[Round "1.46"]
[White "Wihlborn, Bengt"]
[Black "James, Geoffrey H"]
[Result "0-1"]
[ECO "E19"]
[WhiteElo "1820"]
[BlackElo "2144"]
[Annotator "NA"]
[PlyCount "50"]
[EventDate "2019.04.16"]
[EventType "team-tourn"]
[EventCountry "GRE"]
[SourceTitle "playchess.com"]
[Source "ChessBase"]
[SourceQuality "1"]
[WhiteTeam "Sweden"]
[BlackTeam "England"]
[WhiteTeamCountry "SWE"]
[BlackTeamCountry "ENG"]
[TimeControl "40/5400+30:1800+30"]

1. Nf3 {[%emt 0:00:00]} Nf6 {[%emt 0:00:00]} 2. c4 {[%emt 0:00:00]} b6 {[%emt 0:00:00]} 3. g3 {[%emt 0:00:17]} Bb7 {[%emt 0:00:08]} 4. Bg2 {[%emt 0:00:09]} e6 {[%emt 0:00:25]} 5. O-O {[%emt 0:00:56]} Be7 {[%emt 0:00:38]} 6. Nc3 {[%emt 0:00:56]} O-O {[%emt 0:00:51]} 7. d4 {[%emt 0:01:21]} Ne4 {[%emt 0:01:16]} 8. Qc2 {[%emt 0:01:44]} Nxc3 {[%emt 0:01:25]} 9. bxc3 {[%emt 0:03:10]} f5 {[%emt 0:01:02]} 10. Ne5 {[%emt 0:00:35]} Bxg2 {[%emt 0:01:03]} 11. Kxg2 {[%emt 0:00:04]} d6 {[%emt 0:01:01]} 12. Nd3 {[%emt 0:00:46]} Qd7 {[%emt 0:03:54]} 13. a4 {[%emt 0:01:10]} Qc6+ {[%emt 0:01:48]} 14. Kg1 {[%emt 0:00:19]} Qxc4 {[%emt 0:00:41]} 15. a5 {[%emt 0:00:52]} b5 {[%emt 0:02:39]} 16. Re1 {[%emt 0:09:48]} Nc6 {[%emt 0:03:46]} 17. e4 {[%emt 0:03:02]} Nxd4 {[%emt 0:02:20]} 18. Qd1 {[%emt 0:01:52]} fxe4 {[%emt 0:09:05]} 19. cxd4 {[%emt 0:14:32]} exd3 {[%emt 0:04:21]} 20. Qg4 {[%emt 0:02:00]} Bf6 {[%emt 0:02:21]} 21. Bh6 {[%emt 0:06:32]} Kh8 {[%emt 0:10:28]} 22. Rac1 {[%emt 0:01:34]} Qxd4 {[%emt 0:02:20]} 23. Re4 {[%emt 0:00:56]} Qd5 {[%emt 0:01:44]} 24. Rxc7 {[%emt 0:06:08]} gxh6 {[%emt 0:00:32]} 25. Rxe6 {[%emt 0:00:41]} d2 {[%emt 0:02:16]} 0-1

[Event "World Senior chT-65 2019"]
[Site "Rhodes"]
[Date "2019.04.16"]
[Round "1.47"]
[White "Bray, David"]
[Black "Dalling, Peter"]
[Result "1/2-1/2"]
[ECO "E11"]
[WhiteElo "2121"]
[BlackElo "1830"]
[Annotator "NA"]
[PlyCount "30"]
[EventDate "2019.04.16"]
[EventType "team-tourn"]
[EventCountry "GRE"]
[SourceTitle "playchess.com"]
[Source "ChessBase"]
[SourceQuality "1"]
[WhiteTeam "England"]
[BlackTeam "Sweden"]
[WhiteTeamCountry "ENG"]
[BlackTeamCountry "SWE"]
[TimeControl "40/5400+30:1800+30"]

1. Nf3 {[%emt 0:00:00]} d5 {[%emt 0:00:00]} 2. d4 {[%emt 0:00:00]} Nf6 {[%emt 0:00:14]} 3. c4 {[%emt 0:00:00]} e6 {[%emt 0:01:08]} 4. g3 {[%emt 0:00:00]} Bb4+ {[%emt 0:01:49]} 5. Bd2 {[%emt 0:00:12]} Bxd2+ {[%emt 0:00:41]} 6. Nbxd2 {[%emt 0:00:24]} O-O {[%emt 0:01:48]} 7. Bg2 {[%emt 0:00:20]} Nbd7 {[%emt 0:01:12]} 8. Qc2 {[%emt 0:04:33]} b6 {[%emt 0:04:00]} 9. cxd5 {[%emt 0:04:09]} exd5 {[%emt 0:00:58]} 10. Qc6 {[%emt 0:16:25]} Ba6 {[%emt 0:00:24]} 11. Rc1 {[%emt 0:03:13]} Re8 {[%emt 0:04:30]} 12. e3 {[%emt 0:01:14]} Qe7 {[%emt 0:11:12]} 13. Qa4 {[%emt 0:04:10]} Bd3 {[%emt 0:00:00]} 14. Qb3 {[%emt 0:04:43]} Ba6 {[%emt 0:00:00]} 15. Qa4 {[%emt 0:01:53]} Bd3 {[%emt 0:01:06]} 1/2-1/2